fUST/lending_fUST_20241014
["ID","MTS","AMOUNT","RATE_DAILY","PERIOD"]
[340228135,1728872800955,-151.0,0.00026434,7]
[340228136,1728872800984,-151.0,0.00026434,7]
[340228137,1728872801008,-151.0,0.00026434,7]
[340228138,1728872801033,-164.970753,0.00026434,7]
[340228139,1728872801059,-151.0,0.00026434,7]
[340228140,1728872801085,-151.0,0.00026434,7]
[340228141,1728872801110,-151.0,0.00026434,7]
[340228142,1728872801137,-151.0,0.00026434,7]
[340228143,1728872801162,-151.0,0.00026434,7]
[340228144,1728872801185,-151.0,0.00026434,7]
[340228145,1728872801210,-151.0,0.00026434,7]
[340228146,1728872801236,-151.0,0.00026434,7]
[340228147,1728872801259,-426.221055,0.00026434,7]
[340228148,1728872801283,-426.221055,0.00026434,7]
[340228149,1728872801308,-151.0,0.00026434,7]
[340228150,1728872801333,-1088.818438,0.00026434,7]
[340228151,1728872801357,-278.2109168,0.00026434,7]
[340228153,1728872815277,-153.0,0.00026028,2]
[340228154,1728872815303,-153.0,0.00026028,2]
[340228155,1728872815329,-153.0,0.00026028,2]
[340228156,1728872815356,-153.0,0.00026028,2]
[340228157,1728872815385,-153.0,0.00026028,2]
[340228158,1728872815411,-153.0,0.00026028,2]
[340228159,1728872815437,-153.0,0.00026028,2]
[340228160,1728872815462,-153.0,0.00026028,2]
[340228161,1728872815490,-153.0,0.00026028,2]
[340228162,1728872815518,-153.0,0.00026028,2]
[340228163,1728872815546,-153.0,0.00026028,2]
[340228164,1728872815572,-153.0,0.00026028,2]
[340228165,1728872815600,-153.0,0.00026028,2]
[340228166,1728872815625,-153.0,0.00026028,2]
[340228167,1728872815650,-153.0,0.00026028,2]
[340228168,1728872815677,-153.0,0.00026028,2]
[340228169,1728872815704,-153.0,0.00026028,2]
[340228170,1728872815737,-153.0,0.00026028,2]
[340228171,1728872815769,-153.0,0.00026028,2]
[340228172,1728872815795,-153.0,0.00026028,2]
[340228173,1728872815822,-240.3,0.00026073,2]
[340228174,1728872815850,-240.3,0.00026303,2]
[340228175,1728872815875,-810.6075212,0.00026434,7]
[340228176,1728872815901,-181.039234,0.00026434,7]
[340228177,1728872815927,-181.039234,0.00026434,7]
[340228178,1728872815954,-315.615651,0.00026434,7]
[340228179,1728872815984,-315.615651,0.00026434,7]
[340228180,1728872816009,-302.458128,0.00026434,7]
[340228181,1728872816034,-302.458128,0.00026434,7]
[340228182,1728872816065,-212.479584,0.00026434,7]
[340228183,1728872816095,-151.0,0.00026434,7]
[340228184,1728872816121,-212.479584,0.00026434,7]
[340228185,1728872816147,-151.0,0.00026434,7]
[340228186,1728872816171,-151.0,0.00026434,7]
[340228187,1728872816196,-254.101648,0.00026434,7]
[340228188,1728872816220,-254.101648,0.00026434,7]
[340228189,1728872816245,-151.0,0.00026435,7]
[340228190,1728872816269,-151.0,0.00026435,7]
[340228191,1728872816294,-151.0,0.00026435,7]
[340228192,1728872816320,-266.30723,0.00026435,7]
[340228193,1728872816444,-151.0,0.00026435,3]
[340228194,1728872816469,-151.0,0.00026435,3]
[340228195,1728872816494,-151.0,0.00026435,3]
[340228196,1728872816519,-151.0,0.00026435,3]
[340228197,1728872816543,-151.0,0.00026435,3]
[340228198,1728872816578,-151.0,0.00026435,3]
[340228199,1728872816601,-151.0,0.00026435,3]
[340228200,1728872816626,-151.0,0.00026435,3]
[340228201,1728872816650,-151.0,0.00026435,7]
[340228202,1728872816676,-151.0,0.00026435,7]
[340228203,1728872816700,-151.0,0.00026435,7]
[340228204,1728872816723,-151.0,0.00026435,7]
[340228205,1728872816747,-151.0,0.00026435,7]
[340228206,1728872816772,-151.0,0.00026435,7]
[340228207,1728872816796,-151.0,0.00026435,7]
[340228208,1728872816820,-151.0,0.00026435,7]
[340228209,1728872816843,-156.263924,0.00026435,7]
[340228210,1728872816866,-151.0,0.00026435,7]
[340228211,1728872816892,-151.0,0.00026435,7]
[340228212,1728872816915,-151.0,0.00026435,7]
[340228213,1728872816939,-151.0,0.00026435,7]
[340228214,1728872816962,-297.00994,0.00026435,7]
[340228215,1728872816989,-151.0,0.00026435,7]
[340228216,1728872817015,-151.0,0.00026435,7]
[340228217,1728872817042,-192.052423,0.00026435,7]
[340228218,1728872817069,-192.052423,0.00026435,7]
[340228219,1728872817094,-192.052423,0.00026435,7]
[340228220,1728872817119,-192.052423,0.00026435,7]
[340228221,1728872817145,-306.122637,0.00026435,7]
[340228222,1728872817170,-306.122637,0.00026435,7]
[340228223,1728872817210,-306.122637,0.00026435,7]
[340228224,1728872817244,-306.122637,0.00026435,7]
[340228225,1728872817281,-151.0,0.00026435,7]
[340228226,1728872817320,-151.0,0.00026435,7]
[340228227,1728872817355,-151.0,0.00026435,7]
[340228228,1728872817392,-151.0,0.00026435,7]
[340228229,1728872817426,-151.0,0.00026435,7]
[340228230,1728872817464,-151.0,0.00026435,7]
[340228231,1728872817503,-152.229507,0.00026435,7]
[340228232,1728872817534,-1088.818438,0.00026435,7]
[340228233,1728872817568,-1088.818438,0.00026435,7]
[340228234,1728872817602,-181.039234,0.00026435,7]
[340228235,1728872817636,-181.039234,0.00026435,7]
[340228236,1728872817666,-315.615651,0.00026435,7]
[340228237,1728872817698,-315.615651,0.00026435,7]
[340228238,1728872817730,-302.458128,0.00026435,7]
[340228239,1728872817762,-302.458128,0.00026435,7]
[340228240,1728872817794,-212.479584,0.00026435,7]
[340228241,1728872817827,-151.0,0.00026435,7]
[340228242,1728872817859,-212.479584,0.00026435,7]
[340228243,1728872817892,-151.0,0.00026435,7]
[340228244,1728872817923,-151.0,0.00026435,7]
[340228245,1728872817955,-254.101648,0.00026435,7]
[340228246,1728872817993,-254.101648,0.00026435,7]
[340228247,1728872818028,-5000.0,0.00026436,2]
[340228248,1728872818061,-151.0,0.00026437,3]
[340228249,1728872818086,-151.0,0.00026437,3]
[340228250,1728872818215,-227.408047,0.00026437,3]
[340228251,1728872818246,-151.0,0.00026437,7]
[340228252,1728872818269,-151.0,0.00026437,7]
[340228253,1728872818293,-162.557549,0.00026437,7]
[340228254,1728872818316,-151.0,0.00026437,7]
[340228255,1728872818341,-188.045503,0.00026437,7]
[340228256,1728872818364,-151.0,0.00026437,7]
[340228257,1728872818387,-151.0,0.00026437,7]
[340228258,1728872818411,-151.0,0.00026437,7]
[340228259,1728872818433,-151.0,0.00026437,2]
[340228260,1728872818456,-151.0,0.00026437,7]
[340228261,1728872818480,-151.0,0.00026437,7]
[340228262,1728872818503,-151.0,0.00026437,7]
[340228263,1728872818526,-151.0,0.00026437,7]
[340228264,1728872818549,-151.0,0.00026437,7]
[340228265,1728872818573,-228.296773,0.00026437,7]
[340228266,1728872818596,-228.296773,0.00026437,7]
[340228267,1728872818620,-151.0,0.00026437,7]
[340228268,1728872818646,-195.852282,0.00026437,7]
[340228269,1728872818672,-151.0,0.00026437,7]
[340228270,1728872818697,-151.0,0.00026437,7]
[340228271,1728872818721,-151.0,0.00026437,7]
[340228272,1728872818747,-151.0,0.00026437,7]
[340228273,1728872818772,-211.688626,0.00026437,7]
[340228274,1728872818797,-211.688626,0.00026437,7]
[340228275,1728872818822,-151.0,0.00026438,7]
[340228276,1728872818845,-151.0,0.00026444,7]
[340228277,1728872818869,-151.0,0.00026444,7]
[340228278,1728872818894,-151.0,0.00026445,7]
[340228279,1728872818918,-151.0,0.00026445,7]
[340228280,1728872818943,-151.0,0.00026445,7]
[340228281,1728872818970,-151.0,0.00026445,7]
[340228282,1728872818996,-151.0,0.00026445,7]
[340228283,1728872819022,-160.283393,0.00026445,7]
[340228284,1728872819047,-151.0,0.00026445,7]
[340228285,1728872819073,-151.0,0.00026445,7]
[340228286,1728872819098,-151.0,0.00026445,3]
[340228287,1728872819124,-151.0,0.00026445,7]
[340228288,1728872819150,-153.853345,0.00026445,7]
[340228289,1728872819175,-151.0,0.00026445,7]
[340228290,1728872819202,-157.757226,0.00026445,7]
[340228291,1728872819227,-157.757226,0.00026445,7]
[340228292,1728872819251,-405.67038763,0.00026446,2]
[340228293,1728872819276,-293.370629,0.00026447,7]
[340228294,1728872819302,-151.0,0.00026447,3]
[340228295,1728872819330,-151.0,0.00026447,7]
[340228296,1728872819355,-151.0,0.00026447,7]
[340228297,1728872819379,-151.0,0.00026447,7]
[340228298,1728872819403,-185.900881,0.00026447,7]
[340228299,1728872819426,-151.0,0.00026447,2]
[340228300,1728872819450,-151.0,0.00026447,7]
[340228301,1728872819474,-268.771668,0.00026447,7]
[340228302,1728872819499,-151.0,0.00026447,7]
[340228303,1728872819524,-221.25364,0.00026447,7]
[340228304,1728872819548,-151.0,0.00026447,7]
[340228305,1728872819575,-228.296773,0.00026447,7]
[340228306,1728872819599,-228.296773,0.00026447,7]
[340228307,1728872819623,-151.0,0.00026447,7]
[340228308,1728872819649,-151.0,0.00026447,7]
[340228309,1728872819674,-151.0,0.00026447,7]
[340228310,1728872819703,-151.0,0.00026447,7]
[340228311,1728872819728,-192.052423,0.00026447,7]
[340228312,1728872819752,-192.052423,0.00026447,7]
[340228313,1728872819778,-306.122637,0.00026447,7]
[340228314,1728872819803,-306.122637,0.00026447,7]
[340228315,1728872819835,-151.0,0.00026456,7]
[340228316,1728872819860,-151.0,0.00026456,7]
[340228317,1728872819885,-151.0,0.00026456,7]
[340228318,1728872819910,-151.0,0.00026456,7]
[340228319,1728872819935,-247.369006,0.00026456,7]
[340228320,1728872819958,-151.0,0.00026456,7]
[340228321,1728872819984,-200.0,0.0002646,14]
[340228322,1728872820007,-151.0,0.00026464,3]
[340228323,1728872820032,-151.0,0.00026464,7]
[340228324,1728872820062,-5000.0,0.00026472,2]
[340228325,1728872820088,-151.0,0.00026472,7]
[340228326,1728872820111,-151.0,0.00026472,7]
[340228327,1728872820134,-151.0,0.00026472,7]
[340228328,1728872820157,-500.0,0.00026473,2]
[340228329,1728872820181,-500.85886919,0.00026473,2]
[340228330,1728872820203,-500.0,0.00026473,2]
[340228331,1728872820226,-502.1799293,0.00026473,2]
[340228332,1728872820249,-501.24049568,0.00026473,2]
[340228333,1728872820272,-500.0,0.00026473,2]
[340228334,1728872820296,-500.95403375,0.00026473,2]
[340228335,1728872820322,-500.0,0.00026473,2]
[340228336,1728872820347,-315.27149155,0.00026473,2]
[340228337,1728872820371,-501.18395913,0.00026473,2]
[340228338,1728872820499,-500.0,0.00026473,2]
[340228339,1728872820526,-526.69765479,0.00026473,2]
[340228340,1728872820550,-501.30693979,0.00026473,2]
[340228341,1728872820577,-500.0,0.00026473,2]
[340228342,1728872820603,-500.0,0.00026473,2]
[340228343,1728872820628,-500.0,0.00026473,2]
[340228344,1728872820655,-502.20137387,0.00026473,2]
[340228345,1728872820682,-1088.818438,0.00026473,7]
[340228346,1728872820708,-1088.818438,0.00026473,7]
[340228347,1728872820733,-181.039234,0.00026473,7]
[340228348,1728872820758,-181.039234,0.00026473,7]
[340228349,1728872820785,-315.615651,0.00026473,7]
[340228350,1728872820810,-315.615651,0.00026473,7]
[340228351,1728872820837,-302.458128,0.00026473,7]
[340228352,1728872820862,-302.458128,0.00026473,7]
[340228353,1728872820888,-212.479584,0.00026473,7]
[340228354,1728872820915,-151.0,0.00026473,7]
[340228355,1728872820941,-212.479584,0.00026473,7]
[340228356,1728872820971,-151.0,0.00026473,7]
[340228357,1728872820997,-151.0,0.00026473,7]
[340228358,1728872821022,-254.101648,0.00026473,7]
[340228359,1728872821048,-254.101648,0.00026473,7]
[340228360,1728872821075,-151.0,0.0002649,2]
[340228361,1728872821099,-151.0,0.0002649,7]
[340228362,1728872821122,-303.98006437,0.00026497,4]
[340228363,1728872821147,-151.0,0.00026497,7]
[340228364,1728872821171,-150.112233,0.000265,10]
[340228365,1728872821195,-150.112233,0.000265,9]
[340228366,1728872821218,-150.112233,0.000265,6]
[340228367,1728872821243,-150.112233,0.000265,6]
[340228368,1728872821267,-150.112233,0.000265,9]
[340228369,1728872821290,-150.112233,0.000265,8]
[340228370,1728872821314,-150.0,0.000265,2]
[340228371,1728872821340,-153.9370781,0.000265,2]
[340228372,1728872821363,-154.1837106,0.000265,2]
[340228373,1728872821387,-306.0,0.000265,2]
[340228374,1728872821411,-5000.0,0.00026508,2]
[340228375,1728872821437,-7696.82860623,0.00026509,4]
[340228376,1728872821461,-151.0,0.00026509,7]
[340228377,1728872821486,-151.0,0.00026509,7]
[340228378,1728872821510,-192.052423,0.00026509,7]
[340228379,1728872821533,-192.052423,0.00026509,7]
[340228380,1728872821557,-306.122637,0.00026509,7]
[340228381,1728872821581,-306.122637,0.00026509,7]
[340228382,1728872821607,-151.0,0.00026509,7]
[340228383,1728872821632,-151.0,0.00026509,7]
[340228384,1728872821656,-151.0,0.00026509,7]
[340228385,1728872821681,-151.0,0.00026509,7]
[340228386,1728872821706,-151.0,0.00026509,7]
[340228387,1728872821733,-1088.818438,0.00026509,7]
[340228388,1728872821758,-1088.818438,0.00026509,7]
[340228389,1728872821782,-181.039234,0.00026509,7]
[340228390,1728872821807,-181.039234,0.00026509,7]
[340228391,1728872821832,-315.615651,0.00026509,7]
[340228392,1728872821856,-315.615651,0.00026509,7]
[340228393,1728872821883,-302.458128,0.00026509,7]
[340228394,1728872821908,-302.458128,0.00026509,7]
[340228395,1728872821934,-212.479584,0.00026509,7]
[340228396,1728872821959,-151.0,0.00026509,7]
[340228397,1728872821989,-212.479584,0.00026509,7]
[340228398,1728872822014,-252.43127,0.00026509,7]
[340228399,1728872822042,-151.0,0.00026509,7]
[340228400,1728872822068,-254.101648,0.00026509,7]
[340228401,1728872822092,-254.101648,0.00026509,7]
[340228402,1728872822120,-176.42,0.00026512,3]
[340228403,1728872822145,-151.0,0.00026519,7]
[340228404,1728872822169,-151.0,0.00026519,7]
[340228405,1728872822193,-228.296773,0.00026519,7]
[340228406,1728872822218,-228.296773,0.00026519,7]
[340228407,1728872822243,-151.0,0.00026519,7]
[340228408,1728872822266,-153.212661,0.00026519,7]
[340228409,1728872822292,-151.0,0.00026519,7]
[340228410,1728872822316,-151.0,0.00026519,7]
[340228411,1728872822340,-192.052423,0.00026519,7]
[340228412,1728872822365,-192.052423,0.00026519,7]
[340228413,1728872822390,-306.122637,0.00026519,7]
[340228414,1728872822415,-306.122637,0.00026519,7]
[340228415,1728872822443,-151.0,0.00026519,7]
[340228416,1728872822468,-151.0,0.00026519,7]
[340228417,1728872822493,-151.0,0.00026519,7]
[340228418,1728872822518,-151.0,0.00026519,7]
[340228419,1728872822542,-151.0,0.00026519,7]
[340228420,1728872822566,-1088.818438,0.00026519,7]
[340228421,1728872822591,-1088.818438,0.00026519,7]
[340228422,1728872822615,-151.0,0.00026519,7]
[340228423,1728872822715,-181.039234,0.00026519,7]
[340228424,1728872822740,-181.039234,0.00026519,7]
[340228425,1728872822764,-151.0,0.00026519,7]
[340228426,1728872822789,-315.615651,0.00026519,7]
[340228427,1728872822814,-151.0,0.00026519,7]
[340228428,1728872822840,-315.615651,0.00026519,7]
[340228429,1728872822865,-302.458128,0.00026519,7]
[340228430,1728872822889,-302.458128,0.00026519,7]
[340228431,1728872822916,-212.479584,0.00026519,7]
[340228432,1728872822942,-151.0,0.00026519,7]
[340228433,1728872822973,-212.479584,0.00026519,7]
[340228434,1728872822998,-211.688626,0.00026519,7]
[340228435,1728872823023,-211.688626,0.00026519,7]
[340228436,1728872823047,-151.0,0.00026519,7]
[340228437,1728872823074,-254.101648,0.00026519,7]
[340228438,1728872823099,-254.101648,0.00026519,7]
[340228439,1728872823124,-7696.82860623,0.00026519,4]
[340228440,1728872823150,-3417.96525759,0.00026521,2]
[340228441,1728872835564,-2903.58761532,0.00026345,2]
[340228442,1728872835603,-255.732633,0.00026445,7]
[340228443,1728872835735,-255.732633,0.00026445,7]
[340228444,1728872835760,-151.0,0.00026472,7]
[340228445,1728872835785,-151.0,0.00026472,2]
[340228446,1728872835813,-338.05865636,0.00026507,2]
[340228447,1728872835840,-300.0,0.00026518,2]
[340228448,1728872835866,-882.11,0.00026519,3]
[340228449,1728872835890,-256.47,0.00026519,10]
[340228450,1728872835916,-1582.03474241,0.00026521,2]
[340228451,1728872835941,-151.0,0.00026521,7]
[340228452,1728872835967,-151.0,0.00026521,7]
[340228453,1728872835996,-151.0,0.00026521,7]
[340228454,1728872836021,-151.0,0.00026521,7]
[340228455,1728872836047,-151.0,0.00026521,2]
[340228456,1728872836074,-7696.82860623,0.00026522,4]
[340228457,1728872836098,-5000.0,0.00026528,2]
[340228458,1728872836125,-5000.0,0.00026528,2]
[340228459,1728872836151,-3465.69299663,0.00026528,2]
[340228460,1728872836174,-68797.72479801,0.00026529,2]
[340228461,1728872836199,-151.0,0.00026529,7]
[340228462,1728872836223,-162.04139,0.00026529,7]
[340228463,1728872836248,-151.0,0.00026529,7]
[340228464,1728872836271,-228.296773,0.00026529,7]
[340228465,1728872836294,-228.296773,0.00026529,7]
[340228466,1728872836318,-151.0,0.00026529,7]
[340228467,1728872836342,-151.51477,0.00026529,7]
[340228468,1728872836367,-151.0,0.00026529,7]
[340228469,1728872836392,-192.052423,0.00026529,7]
[340228470,1728872836417,-192.052423,0.00026529,7]
[340228471,1728872836442,-306.122637,0.00026529,7]
[340228472,1728872836470,-144.65013004,0.00026529,7]
[340228475,1728872848153,-472.61182999,0.00026423,2]
[340228476,1728872848174,-151.0,0.00026472,7]
[340228477,1728872848195,-338.05865636,0.0002652,2]
[340228478,1728872848217,-151.0,0.00026521,7]
[340228479,1728872848239,-281.71554696,0.00026528,2]
[340228480,1728872848260,-161.47250696,0.00026529,7]
[340228481,1728872848282,-151.0,0.00026529,7]
[340228482,1728872848303,-144.23302212,0.00026529,7]
[340228535,1728873040182,-167.62819,0.00025729,2]
[340228536,1728873040192,-82.37181,0.00026,2]
[340228563,1728873045290,-308.933394,0.00026,2]
[340228580,1728873046111,-134.69886173,0.00026,2]
[340228582,1728873046124,-303.18179171,0.00026292,2]
[340228587,1728873049528,168.0,0.00023,2]
[340228589,1728873159536,515.18949516,0.0002319,2]
[340228591,1728873193125,173.14733392,0.00023,2]
[340228592,1728873226718,620.5432406,0.00023067,2]
[340228593,1728873241426,1111.0,0.00023093,2]
[340228595,1728873289803,383.70190839,0.000231,2]
[340228598,1728873773900,5000.0,0.00024001,2]
[340228601,1728874041157,-165.322773,0.00024528,2]
[340228602,1728874041180,-173.695993,0.00025153,2]
[340228603,1728874041210,-173.695993,0.00025808,2]
[340228604,1728874041232,-300.0,0.00025999,2]
[340228605,1728874041254,-300.0,0.00025999,2]
[340228606,1728874041275,-3760.74478614,0.00026,2]
[340228608,1728874113488,5000.0,0.00022972,2]
[340228652,1728874238455,-332.0,0.00025322,2]
[340228653,1728874238467,-135.26698584,0.00025322,2]
[340228654,1728874238476,-874.2338925,0.00025472,2]
[340228665,1728874240301,-4125.7661075,0.00025472,2]
[340228667,1728874240311,-227.68,0.00025984,10]
[340228669,1728874240322,-392.68,0.00025984,10]
[340228670,1728874240332,-300.0,0.00025992,2]
[340228671,1728874240344,-6317.89940638,0.00025993,7]
[340228672,1728874240355,-78534.6137133,0.00025994,7]
[340228673,1728874240367,-4176.06463242,0.00025994,2]
[340228697,1728874243509,-4133.20788127,0.00025994,2]
[340228709,1728874333566,30272.41635419,0.000227,2]
[340228719,1728875090291,112574.0,0.00024001,2]
[340228720,1728875228366,-251.161308,0.0002454,2]
[340228721,1728875228387,-179.6350626,0.00024565,2]
[340228722,1728875228409,-159.047238,0.00025135,2]
[340228723,1728875228438,-159.047238,0.00025244,2]
[340228724,1728875228463,-159.047238,0.00025353,2]
[340228725,1728875228489,-3683.98296041,0.00025369,2]
[340228726,1728875228514,-159.047238,0.00025462,2]
[340228727,1728875228537,-300.0,0.00025478,2]
[340228728,1728875228558,-300.0,0.00025478,2]
[340228729,1728875228579,-827.8495632,0.00025479,2]
[340228730,1728875228601,-210.1513438,0.00025479,2]
[340228731,1728875228621,-413.9247816,0.00025479,2]
[340228732,1728875228642,-210.1513438,0.00025479,2]
[340228733,1728875228662,-210.1513438,0.00025479,2]
[340228734,1728875228683,-413.9247816,0.00025479,2]
[340228735,1728875228703,-413.9247816,0.00025479,2]
[340228736,1728875228725,-210.1513438,0.00025479,2]
[340228737,1728875228746,-210.1513438,0.00025479,2]
[340228738,1728875228767,-210.1513438,0.00025479,2]
[340228739,1728875228788,-210.1513438,0.00025479,2]
[340228740,1728875228809,-210.1513438,0.00025479,2]
[340228741,1728875228924,-500.0,0.000255,2]
[340228742,1728875228946,-324.7833813,0.00025504,2]
[340228743,1728875228968,-3683.98296041,0.0002554,2]
[340228744,1728875228990,-159.047238,0.00025572,2]
[340228745,1728875229012,-159.047238,0.00025681,2]
[340228746,1728875229035,-159.047238,0.0002579,2]
[340228747,1728875229056,-159.047238,0.00025899,2]
[340228748,1728875229077,-2693.85642234,0.000259,2]
[340228749,1728875229098,-200.3,0.00025969,2]
[340228750,1728875229118,-1015.41,0.00025993,2]
[340228751,1728875229140,-1081.37480428,0.00025994,2]
[340228769,1728875432459,-159.047238,0.00025131,2]
[340228770,1728875432469,-159.047238,0.00025458,2]
[340228771,1728875432479,-159.047238,0.00025786,2]
[340228772,1728875432489,-300.0,0.00025866,2]
[340228774,1728875432501,-18401.58388088,0.00025867,2]
[340228775,1728875432515,-2357.1243696,0.000259,2]
[340228777,1728875432526,-4826.78182439,0.00026,2]
[340228779,1728875432535,-7425.578344,0.00026,2]
[340228781,1728875432546,-1455.0,0.00026,2]
[340228783,1728875432555,-381.01435882,0.00026,2]
[340228785,1728875432566,-27099.72481907,0.00026056,5]
[340228841,1728875439314,-2137.52216241,0.00026056,5]
[340228855,1728875440554,-22701.94295787,0.00026056,5]
[340228856,1728875440566,-12664.92772028,0.00026098,2]
[340228857,1728875440579,-22965.7725255,0.00026106,2]
[340228858,1728875440588,-159.047238,0.00026113,2]
[340228859,1728875440598,-35479.4041204,0.00026146,4]
[340228860,1728875440608,-1043.26439274,0.00026146,4]
[340228880,1728875763553,2405.07299638,0.00027,60]
[340229029,1728876639135,-165.322773,0.00024657,2]
[340229030,1728876639145,-159.047238,0.00024908,2]
[340229031,1728876639154,-1000.0,0.00025,2]
[340229032,1728876639165,-530.04182452,0.00025204,5]
[340229135,1728876646655,-761.21398722,0.00025204,5]
[340229136,1728876646767,-6085.12535964,0.00025204,5]
[340229137,1728876646777,-465.11334929,0.00025259,2]
[340229138,1728876646787,-400.0,0.00025469,3]
[340229139,1728876646797,-300.0,0.00025889,2]
[340229140,1728876646807,-300.0,0.00025889,2]
[340229141,1728876646816,-183.6,0.00025971,2]
[340229142,1728876646826,-500.0,0.00025973,2]
[340229143,1728876646835,-500.0,0.00025973,2]
[340229144,1728876646844,-501.05674957,0.00025973,2]
[340229145,1728876646854,-501.37338605,0.00025973,2]
[340229146,1728876646863,-500.51098215,0.00025973,2]
[340229147,1728876646873,-500.0,0.00025973,2]
[340229148,1728876646882,-500.0,0.00025973,2]
[340229149,1728876646892,-500.0,0.00025973,2]
[340229150,1728876646901,-3086.93,0.00025989,2]
[340229151,1728876646910,-621.86615551,0.00025989,2]
[340229152,1728876646922,-538.98033174,0.00025989,2]
[340229153,1728876646930,-500.0,0.00025989,2]
[340229154,1728876646940,-645.98428133,0.00025989,2]
[340229155,1728876646949,-542.87,0.00025989,2]
[340229156,1728876646958,-500.0,0.00025989,2]
[340229157,1728876646968,-500.0,0.00025989,2]
[340229158,1728876646977,-150.16990939,0.00025989,2]
[340229159,1728876646986,-500.0,0.00025989,2]
[340229160,1728876646995,-500.0,0.00025989,2]
[340229161,1728876647003,-1120.82,0.00025989,2]
[340229162,1728876647012,-310.26005884,0.00025989,2]
[340229163,1728876647022,-500.0,0.00025989,2]
[340229164,1728876647031,-500.0,0.00025989,2]
[340229165,1728876647041,-472.61182999,0.00025989,2]
[340229166,1728876647050,-42581.7888199,0.0002599,4]
[340229167,1728876647059,-6769.93284084,0.0002599,4]
[340229168,1728876647069,-500.0,0.00025993,2]
[340229169,1728876647081,-500.0,0.00025993,2]
[340229170,1728876647091,-500.0,0.00025996,2]
[340229171,1728876647101,-322.74150953,0.00025996,2]
[340229172,1728876647110,-594.1643675,0.00025996,2]
[340229173,1728876647120,-244.78278816,0.00025996,2]
[340229174,1728876647130,-294.51804162,0.00025996,2]
[340229175,1728876647139,-33917.3,0.00025996,2]
[340229176,1728876647149,-171.26653392,0.00025996,2]
[340229177,1728876647159,-500.0,0.00025996,2]
[340229178,1728876647172,-224.98549464,0.00025996,2]
[340229179,1728876647185,-179.30950738,0.00025996,2]
[340229180,1728876647195,-429.90050542,0.00025996,2]
[340229181,1728876647204,-8115.47,0.00025997,2]
[340229182,1728876647213,-673.19,0.00025997,2]
[340229183,1728876647223,-228.17398873,0.00025997,2]
[340229184,1728876647232,-267.69036738,0.00025997,2]
[340229185,1728876647242,-360.98203198,0.00025997,2]
[340229186,1728876647251,-2007.94,0.00025997,2]
[340229187,1728876647261,-295.40281075,0.00025997,2]
[340229188,1728876647270,-500.0,0.00025997,2]
[340229189,1728876647280,-546.17470838,0.00025997,2]
[340229190,1728876647289,-153.570901,0.00025997,7]
[340229191,1728876647299,-183.57507953,0.00025997,2]
[340229192,1728876647309,-500.0,0.00025997,2]
[340229193,1728876647320,-151.0,0.00025997,7]
[340229194,1728876647330,-3369.78,0.00025997,2]
[340229195,1728876647339,-151.0,0.00025997,7]
[340229196,1728876647350,-265.454726,0.00025997,7]
[340229197,1728876647361,-151.0,0.00025997,7]
[340229198,1728876647370,-151.0,0.00025997,7]
[340229199,1728876647379,-151.0,0.00025997,7]
[340229200,1728876647389,-500.0,0.00025998,2]
[340229201,1728876647398,-500.0,0.00025998,2]
[340229202,1728876647407,-500.0,0.00025998,2]